[Event "Late-Titled-Tuesday-Blitz-March-19-2024"]
[Site "Chess.com"]
[Date "2024.03.19"]
[Round "1"]
[White "Sandstad"]
[Black "aa175"]
[Result "1-0"]
[WhiteElo "2468"]
[BlackElo "2729"]
[TimeControl "180+1"]
[EndTime "14:06:26 PDT"]
[Termination "Sandstad won on time"]

1. d4 {[%clk 0:03:00.9]} 1... Nf6 {[%clk 0:02:54.5]} 2. c4 {[%clk 0:03:00.5]}
2... g6 {[%clk 0:02:55.2]} 3. Nc3 {[%clk 0:02:59.1]} 3... d5 {[%clk 0:02:55.8]}
4. Bf4 {[%clk 0:02:57.8]} 4... Bg7 {[%clk 0:02:55.6]} 5. e3 {[%clk 0:02:58.1]}
5... O-O {[%clk 0:02:55.4]} 6. Rc1 {[%clk 0:02:57.9]} 6... c5 {[%clk 0:02:55.7]}
7. dxc5 {[%clk 0:02:57.8]} 7... Ne4 {[%clk 0:02:50.3]} 8. cxd5 {[%clk
0:02:44.7]} 8... Nxc3 {[%clk 0:02:49.4]} 9. bxc3 {[%clk 0:02:44.7]} 9... Qa5
{[%clk 0:02:50.3]} 10. Qb3 {[%clk 0:02:26]} 10... Nd7 {[%clk 0:02:16.3]} 11. Qb4
{[%clk 0:02:25.5]} 11... Qxa2 {[%clk 0:02:03.7]} 12. Bc4 {[%clk 0:02:24.9]}
12... a5 {[%clk 0:02:03.9]} 13. Qb5 {[%clk 0:02:11.6]} 13... Qa3 {[%clk
0:02:03]} 14. Ne2 {[%clk 0:02:11.7]} 14... Nxc5 {[%clk 0:01:57.8]} 15. O-O
{[%clk 0:02:08.3]} 15... Bd7 {[%clk 0:01:44]} 16. Qb6 {[%clk 0:02:06.6]} 16...
Qa4 {[%clk 0:01:07.5]} 17. Qxc5 {[%clk 0:02:01.7]} 17... Rac8 {[%clk 0:01:08.1]}
18. Qxe7 {[%clk 0:02:01.2]} 18... Rfe8 {[%clk 0:01:04.8]} 19. Qd6 {[%clk
0:01:48.2]} 19... Qxc4 {[%clk 0:00:50.4]} 20. Qxd7 {[%clk 0:01:44]} 20... Qxe2
{[%clk 0:00:49.8]} 21. Qxb7 {[%clk 0:01:44.6]} 21... Rxc3 {[%clk 0:00:43.6]} 22.
Rxc3 {[%clk 0:01:42.2]} 22... Bxc3 {[%clk 0:00:44.5]} 23. Qc6 {[%clk 0:01:40.1]}
23... Rd8 {[%clk 0:00:39.4]} 24. Qxc3 {[%clk 0:01:39.8]} 24... Rxd5 {[%clk
0:00:39.6]} 25. Be5 {[%clk 0:01:31.7]} 25... Qg4 {[%clk 0:00:26.4]} 26. h3
{[%clk 0:01:26.8]} 26... Qd7 {[%clk 0:00:26]} 27. Bd4 {[%clk 0:01:26.2]} 27...
a4 {[%clk 0:00:25.8]} 28. Ra1 {[%clk 0:01:25.3]} 28... Rb5 {[%clk 0:00:20.6]}
29. Rxa4 {[%clk 0:01:14.4]} 29... Rb1+ {[%clk 0:00:15.9]} 30. Kh2 {[%clk
0:01:14.4]} 30... Rb8 {[%clk 0:00:11]} 31. Ra1 {[%clk 0:01:06.3]} 31... Qb5
{[%clk 0:00:09.5]} 32. Kg1 {[%clk 0:01:04.9]} 32... Qf5 {[%clk 0:00:07.3]} 33.
Qc5 {[%clk 0:01:03.5]} 33... Qd3 {[%clk 0:00:01.7]} 34. Qe5 {[%clk 0:01:00.7]}
34... Rb1+ {[%clk 0:00:01.5]} 35. Rxb1 {[%clk 0:01:00.4]} 35... Qxb1+ {[%clk
0:00:01.2]} 36. Kh2 {[%clk 0:01:00.7]} 1-0

[Event "Late-Titled-Tuesday-Blitz-March-19-2024"]
[Site "Chess.com"]
[Date "2024.03.19"]
[Round "1"]
[White "Zohid6"]
[Black "Quattroporte300"]
[Result "1-0"]
[WhiteElo "2873"]
[BlackElo "2510"]
[TimeControl "180+1"]
[EndTime "14:06:38 PDT"]
[Termination "Zohid6 won on time"]

1. e4 {[%clk 0:03:00.9]} 1... c5 {[%clk 0:02:59.8]} 2. Nf3 {[%clk 0:02:57.7]}
2... d6 {[%clk 0:02:56.9]} 3. Bb5+ {[%clk 0:02:57.3]} 3... Bd7 {[%clk
0:02:56.1]} 4. Bxd7+ {[%clk 0:02:56.5]} 4... Qxd7 {[%clk 0:02:56.7]} 5. c4
{[%clk 0:02:56]} 5... Nc6 {[%clk 0:02:56.9]} 6. Nc3 {[%clk 0:02:54.9]} 6... Nf6
{[%clk 0:02:57.3]} 7. O-O {[%clk 0:02:53.4]} 7... g6 {[%clk 0:02:57.9]} 8. d3
{[%clk 0:02:51.9]} 8... Bg7 {[%clk 0:02:58]} 9. h3 {[%clk 0:02:52]} 9... O-O
{[%clk 0:02:58.2]} 10. Be3 {[%clk 0:02:52]} 10... e5 {[%clk 0:02:52.5]} 11. a3
{[%clk 0:02:51.6]} 11... Nd4 {[%clk 0:02:47.5]} 12. b4 {[%clk 0:02:50.5]} 12...
b6 {[%clk 0:02:47]} 13. Rb1 {[%clk 0:02:47.5]} 13... h6 {[%clk 0:02:43]} 14. Nd2
{[%clk 0:02:36.7]} 14... Nh5 {[%clk 0:02:35.4]} 15. bxc5 {[%clk 0:02:35.5]}
15... dxc5 {[%clk 0:02:33.5]} 16. Nd5 {[%clk 0:02:35.3]} 16... Kh7 {[%clk
0:02:30.4]} 17. a4 {[%clk 0:02:29.1]} 17... Rab8 {[%clk 0:02:19.2]} 18. Bxd4
{[%clk 0:02:24.1]} 18... exd4 {[%clk 0:02:11.4]} 19. f4 {[%clk 0:02:23]} 19...
Nf6 {[%clk 0:01:52.9]} 20. Nxf6+ {[%clk 0:02:20.2]} 20... Bxf6 {[%clk
0:01:52.5]} 21. e5 {[%clk 0:02:19.1]} 21... Bg7 {[%clk 0:01:49.7]} 22. Ne4
{[%clk 0:02:19]} 22... f5 {[%clk 0:01:48.6]} 23. exf6 {[%clk 0:02:17.4]} 23...
Bxf6 {[%clk 0:01:48.3]} 24. Qf3 {[%clk 0:02:14.2]} 24... Bg7 {[%clk 0:01:45.5]}
25. a5 {[%clk 0:02:04.3]} 25... Qc7 {[%clk 0:01:34.8]} 26. axb6 {[%clk
0:01:57.5]} 26... Rxb6 {[%clk 0:01:31.3]} 27. Ra1 {[%clk 0:01:54.6]} 27... Rb3
{[%clk 0:01:10]} 28. Ra6 {[%clk 0:01:48.7]} 28... Rb6 {[%clk 0:00:59.2]} 29. Ra3
{[%clk 0:01:46.9]} 29... Rb7 {[%clk 0:00:49.7]} 30. Qg4 {[%clk 0:01:39.9]} 30...
Rf5 {[%clk 0:00:35.1]} 31. h4 {[%clk 0:01:32.2]} 31... a5 {[%clk 0:00:32.7]} 32.
Ng3 {[%clk 0:01:29.9]} 32... h5 {[%clk 0:00:26.3]} 33. Qf3 {[%clk 0:01:26.7]}
33... Rf8 {[%clk 0:00:24.1]} 34. f5 {[%clk 0:01:26.6]} 34... Kg8 {[%clk
0:00:21.4]} 35. Qd5+ {[%clk 0:01:24.8]} 35... Qf7 {[%clk 0:00:20.3]} 36. Qc6
{[%clk 0:01:20.3]} 36... gxf5 {[%clk 0:00:18.9]} 37. Nxf5 {[%clk 0:01:21.2]}
37... Kh8 {[%clk 0:00:17.7]} 38. Raa1 {[%clk 0:01:18.3]} 38... Qc7 {[%clk
0:00:12.5]} 39. Qg6 {[%clk 0:01:15.6]} 39... Rb6 {[%clk 0:00:12]} 40. Qxh5+
{[%clk 0:01:13.9]} 40... Kg8 {[%clk 0:00:12.3]} 41. Qg4 {[%clk 0:01:13.6]} 41...
Rbf6 {[%clk 0:00:11.4]} 42. h5 {[%clk 0:01:12.2]} 42... Qd7 {[%clk 0:00:07.1]}
43. Nh6+ {[%clk 0:01:11.7]} 1-0

[Event "Late-Titled-Tuesday-Blitz-March-19-2024"]
[Site "Chess.com"]
[Date "2024.03.19"]
[Round "1"]
[White "Bryanl106"]
[Black "1g60-1"]
[Result "1-0"]
[WhiteElo "2687"]
[BlackElo "2371"]
[TimeControl "180+1"]
[EndTime "14:06:38 PDT"]
[Termination "Bryanl106 won by resignation"]

1. e4 {[%clk 0:03:00.9]} 1... e6 {[%clk 0:03:00]} 2. d4 {[%clk 0:03:00.4]} 2...
d5 {[%clk 0:03:00.3]} 3. Nd2 {[%clk 0:03:01.1]} 3... Nf6 {[%clk 0:03:00.4]} 4.
e5 {[%clk 0:03:01.6]} 4... Nfd7 {[%clk 0:03:01]} 5. f4 {[%clk 0:03:02.4]} 5...
c5 {[%clk 0:03:01.3]} 6. c3 {[%clk 0:03:03.1]} 6... Nc6 {[%clk 0:03:01.9]} 7.
Ndf3 {[%clk 0:03:03.4]} 7... a5 {[%clk 0:03:02.6]} 8. a3 {[%clk 0:02:55.4]} 8...
a4 {[%clk 0:02:59.1]} 9. Bd3 {[%clk 0:02:54.3]} 9... cxd4 {[%clk 0:02:59.1]} 10.
cxd4 {[%clk 0:02:54.1]} 10... Nb6 {[%clk 0:02:59.1]} 11. Ne2 {[%clk 0:02:54.1]}
11... Na5 {[%clk 0:02:59.2]} 12. O-O {[%clk 0:02:51.7]} 12... Bd7 {[%clk
0:02:51.8]} 13. f5 {[%clk 0:02:51.2]} 13... exf5 {[%clk 0:02:51.9]} 14. Nc3
{[%clk 0:02:46.7]} 14... Nb3 {[%clk 0:02:46.1]} 15. Bg5 {[%clk 0:02:40.1]} 15...
Be7 {[%clk 0:02:42.9]} 16. Bxe7 {[%clk 0:02:39]} 16... Qxe7 {[%clk 0:02:42.9]}
17. Rb1 {[%clk 0:02:39.1]} 17... O-O {[%clk 0:02:19.6]} 18. Bc2 {[%clk
0:02:33.9]} 18... Be6 {[%clk 0:01:59.2]} 19. Bxb3 {[%clk 0:02:32.8]} 19... axb3
{[%clk 0:02:00.1]} 20. Qxb3 {[%clk 0:02:33.3]} 20... Nc4 {[%clk 0:02:00.6]} 21.
Rfe1 {[%clk 0:02:21.6]} 21... f4 {[%clk 0:01:53.4]} 22. Rbd1 {[%clk 0:02:05.6]}
22... g5 {[%clk 0:01:49.4]} 23. Rd3 {[%clk 0:01:47.8]} 23... g4 {[%clk
0:01:42.8]} 24. Nd2 {[%clk 0:01:47.2]} 24... Qg5 {[%clk 0:01:36.9]} 25. Qc2
{[%clk 0:01:28.1]} 25... Rac8 {[%clk 0:01:29.6]} 26. Nxc4 {[%clk 0:01:26.5]}
26... Rxc4 {[%clk 0:01:22.4]} 27. Qf2 {[%clk 0:01:25.6]} 27... Kh8 {[%clk
0:01:03.8]} 28. Rf1 {[%clk 0:01:24]} 28... f3 {[%clk 0:01:03.5]} 29. Kh1 {[%clk
0:01:17.1]} 29... Rg8 {[%clk 0:01:01.9]} 30. gxf3 {[%clk 0:01:14.9]} 30... gxf3
{[%clk 0:01:02.8]} 31. Rxf3 {[%clk 0:01:14.8]} 31... Rxd4 {[%clk 0:00:41.3]} 32.
Ne2 {[%clk 0:01:06.1]} 32... Rg4 {[%clk 0:00:35.8]} 33. Ng3 {[%clk 0:00:59.9]}
33... d4 {[%clk 0:00:32.9]} 34. Rf4 {[%clk 0:00:47.3]} 34... Bd5+ {[%clk
0:00:26.5]} 35. Kg1 {[%clk 0:00:46.8]} 35... Qxe5 {[%clk 0:00:25.8]} 36. Rxg4
{[%clk 0:00:36.5]} 36... Rxg4 {[%clk 0:00:26.7]} 37. Re1 {[%clk 0:00:36.9]}
37... Qg7 {[%clk 0:00:21.5]} 38. Re8+ {[%clk 0:00:35.4]} 1-0

[Event "Late-Titled-Tuesday-Blitz-March-19-2024"]
[Site "Chess.com"]
[Date "2024.03.19"]
[Round "1"]
[White "Horokoskii"]
[Black "rhungaski"]
[Result "0-1"]
[WhiteElo "2174"]
[BlackElo "2600"]
[TimeControl "180+1"]
[EndTime "14:06:40 PDT"]
[Termination "rhungaski won on time"]

1. d4 {[%clk 0:02:52.7]} 1... Nf6 {[%clk 0:02:59.4]} 2. c4 {[%clk 0:02:49.2]}
2... e5 {[%clk 0:02:59]} 3. dxe5 {[%clk 0:02:42.4]} 3... Ng4 {[%clk 0:02:58.6]}
4. Bf4 {[%clk 0:02:32]} 4... Nc6 {[%clk 0:02:56.8]} 5. Nf3 {[%clk 0:02:31.7]}
5... Bb4+ {[%clk 0:02:57.2]} 6. Nbd2 {[%clk 0:02:31.1]} 6... Qe7 {[%clk
0:02:54.5]} 7. e3 {[%clk 0:02:21.4]} 7... Ncxe5 {[%clk 0:02:50.5]} 8. Nxe5
{[%clk 0:02:20.5]} 8... Nxe5 {[%clk 0:02:51.4]} 9. a3 {[%clk 0:02:19.9]} 9...
Bxd2+ {[%clk 0:02:42.4]} 10. Qxd2 {[%clk 0:02:20.8]} 10... d6 {[%clk 0:02:33.4]}
11. Be2 {[%clk 0:01:52]} 11... O-O {[%clk 0:02:32.7]} 12. O-O {[%clk 0:01:47.9]}
12... b6 {[%clk 0:02:29]} 13. b4 {[%clk 0:01:38.8]} 13... Bb7 {[%clk 0:02:20.7]}
14. Rfd1 {[%clk 0:01:26]} 14... Rad8 {[%clk 0:01:47.2]} 15. Bf1 {[%clk
0:01:24.9]} 15... g5 {[%clk 0:01:45]} 16. Bg3 {[%clk 0:01:20.3]} 16... f5 {[%clk
0:01:41.7]} 17. Rac1 {[%clk 0:01:02.3]} 17... Ng6 {[%clk 0:01:35.4]} 18. f4
{[%clk 0:00:43.1]} 18... g4 {[%clk 0:01:08.8]} 19. Re1 {[%clk 0:00:33.5]} 19...
Be4 {[%clk 0:01:08]} 20. Bd3 {[%clk 0:00:28.7]} 20... c5 {[%clk 0:01:06.2]} 21.
Bxe4 {[%clk 0:00:22.6]} 21... Qxe4 {[%clk 0:01:07.1]} 22. Rcd1 {[%clk 0:00:17]}
22... Qxc4 {[%clk 0:01:04.9]} 23. e4 {[%clk 0:00:14.2]} 23... fxe4 {[%clk
0:01:02.8]} 24. Qf2 {[%clk 0:00:10.5]} 24... Qe6 {[%clk 0:00:59.1]} 25. bxc5
{[%clk 0:00:07.5]} 25... bxc5 {[%clk 0:00:55.6]} 26. f5 {[%clk 0:00:07.4]} 26...
Rxf5 {[%clk 0:00:55.1]} 27. Qe2 {[%clk 0:00:07.3]} 27... d5 {[%clk 0:00:53.4]}
28. Rf1 {[%clk 0:00:05]} 28... Rdf8 {[%clk 0:00:50.9]} 29. Rxf5 {[%clk
0:00:04.4]} 29... Rxf5 {[%clk 0:00:50.2]} 30. Qd2 {[%clk 0:00:04.5]} 30... d4
{[%clk 0:00:45.4]} 31. Qc2 {[%clk 0:00:04]} 31... Kg7 {[%clk 0:00:43.8]} 32. Qb2
{[%clk 0:00:03.5]} 32... h5 {[%clk 0:00:42.8]} 0-1

[Event "Late-Titled-Tuesday-Blitz-March-19-2024"]
[Site "Chess.com"]
[Date "2024.03.19"]
[Round "1"]
[White "OverallStranger"]
[Black "Romkachess"]
[Result "0-1"]
[WhiteElo "2396"]
[BlackElo "2709"]
[TimeControl "180+1"]
[EndTime "14:06:42 PDT"]
[Termination "Romkachess won by resignation"]

1. e4 {[%clk 0:03:00.9]} 1... c5 {[%clk 0:02:58.8]} 2. Nc3 {[%clk 0:03:00.8]}
2... d6 {[%clk 0:02:57.7]} 3. f4 {[%clk 0:03:00.9]} 3... Nc6 {[%clk 0:02:57.7]}
4. Nf3 {[%clk 0:03:01.2]} 4... g6 {[%clk 0:02:57.9]} 5. Bc4 {[%clk 0:03:01.5]}
5... Bg7 {[%clk 0:02:57.9]} 6. O-O {[%clk 0:03:02]} 6... e6 {[%clk 0:02:56.9]}
7. d4 {[%clk 0:03:02.5]} 7... cxd4 {[%clk 0:02:53.1]} 8. Nb5 {[%clk 0:03:02.3]}
8... Nge7 {[%clk 0:02:51.5]} 9. Bb3 {[%clk 0:03:02.8]} 9... O-O {[%clk
0:02:48.4]} 10. Nbxd4 {[%clk 0:03:02.9]} 10... Nxd4 {[%clk 0:02:48]} 11. Nxd4
{[%clk 0:03:03]} 11... Nc6 {[%clk 0:02:48.8]} 12. Be3 {[%clk 0:03:02.8]} 12...
Bd7 {[%clk 0:02:45.3]} 13. Qd2 {[%clk 0:03:02]} 13... a6 {[%clk 0:02:41.4]} 14.
Rad1 {[%clk 0:03:01]} 14... Rc8 {[%clk 0:02:36.9]} 15. c3 {[%clk 0:02:56.2]}
15... Na5 {[%clk 0:02:36.3]} 16. Rf3 {[%clk 0:02:39.6]} 16... Nc4 {[%clk
0:02:32.5]} 17. Bxc4 {[%clk 0:02:39.7]} 17... Rxc4 {[%clk 0:02:33]} 18. Rh3
{[%clk 0:02:39.9]} 18... b5 {[%clk 0:02:28.7]} 19. f5 {[%clk 0:02:37.9]} 19...
exf5 {[%clk 0:02:23.7]} 20. exf5 {[%clk 0:02:29.6]} 20... Re8 {[%clk 0:02:13.6]}
21. Bh6 {[%clk 0:02:25.4]} 21... Be5 {[%clk 0:02:09.4]} 22. fxg6 {[%clk
0:02:12]} 22... hxg6 {[%clk 0:02:07.8]} 23. Rf1 {[%clk 0:02:01.5]} 23... Bxh3
{[%clk 0:02:05.1]} 24. Qf2 {[%clk 0:01:58.3]} 24... Bxd4 {[%clk 0:01:09.4]} 25.
cxd4 {[%clk 0:01:57.5]} 25... Be6 {[%clk 0:01:10]} 26. h4 {[%clk 0:01:55.7]}
26... f5 {[%clk 0:00:44.8]} 27. h5 {[%clk 0:01:49.8]} 27... Kh7 {[%clk
0:00:41.8]} 28. Qf4 {[%clk 0:01:33.9]} 28... Qf6 {[%clk 0:00:28.9]} 29. hxg6+
{[%clk 0:01:26]} 29... Kxg6 {[%clk 0:00:25.1]} 30. Qg3+ {[%clk 0:01:12.6]} 30...
Kxh6 {[%clk 0:00:20.2]} 31. Rf4 {[%clk 0:01:11.4]} 31... Rc1+ {[%clk 0:00:20.8]}
32. Kf2 {[%clk 0:01:08.9]} 32... Qg5 {[%clk 0:00:21.5]} 33. Qe3 {[%clk
0:00:57.9]} 33... Kg6 {[%clk 0:00:17.4]} 34. Qxc1 {[%clk 0:00:57.3]} 34... Bd5
{[%clk 0:00:15.4]} 35. g3 {[%clk 0:00:54.1]} 35... Re4 {[%clk 0:00:15.7]} 36.
Qc8 {[%clk 0:00:37.8]} 36... Rxf4+ {[%clk 0:00:15.5]} 37. gxf4 {[%clk
0:00:38.7]} 37... Qxf4+ {[%clk 0:00:16.1]} 38. Ke2 {[%clk 0:00:39.6]} 38... Qe4+
{[%clk 0:00:15.7]} 39. Kd2 {[%clk 0:00:40]} 39... Qxd4+ {[%clk 0:00:16.1]} 40.
Ke2 {[%clk 0:00:40]} 40... Qc4+ {[%clk 0:00:16.3]} 41. Qxc4 {[%clk 0:00:38.9]}
41... Bxc4+ {[%clk 0:00:17.2]} 42. Ke3 {[%clk 0:00:39.4]} 42... Bxa2 {[%clk
0:00:17.7]} 43. Kd4 {[%clk 0:00:40.3]} 43... Bf7 {[%clk 0:00:17.9]} 0-1

[Event "Late-Titled-Tuesday-Blitz-March-19-2024"]
[Site "Chess.com"]
[Date "2024.03.19"]
[Round "1"]
[White "xxysoul6"]
[Black "Rawnsdale"]
[Result "1-0"]
[WhiteElo "2949"]
[BlackElo "2531"]
[TimeControl "180+1"]
[EndTime "14:06:46 PDT"]
[Termination "xxysoul6 won by resignation"]

1. d4 {[%clk 0:03:00.9]} 1... d5 {[%clk 0:02:55.8]} 2. Nf3 {[%clk 0:03:00.5]}
2... e6 {[%clk 0:02:55.8]} 3. c3 {[%clk 0:03:00.6]} 3... Be7 {[%clk 0:02:56.2]}
4. Qc2 {[%clk 0:02:59.8]} 4... Nf6 {[%clk 0:02:56.1]} 5. Bg5 {[%clk 0:03:00.3]}
5... Ne4 {[%clk 0:02:50.7]} 6. Bxe7 {[%clk 0:02:57.6]} 6... Qxe7 {[%clk
0:02:51.6]} 7. Nbd2 {[%clk 0:02:58]} 7... f5 {[%clk 0:02:47.9]} 8. Ne5 {[%clk
0:02:50.5]} 8... Nd7 {[%clk 0:02:42.6]} 9. Ndf3 {[%clk 0:02:50.2]} 9... O-O
{[%clk 0:02:39.8]} 10. g3 {[%clk 0:02:50]} 10... c6 {[%clk 0:02:35]} 11. Bg2
{[%clk 0:02:49.4]} 11... Ndf6 {[%clk 0:02:30.1]} 12. O-O {[%clk 0:02:48.6]}
12... Bd7 {[%clk 0:02:26.4]} 13. Nd3 {[%clk 0:02:46.1]} 13... Be8 {[%clk
0:02:21]} 14. Nfe5 {[%clk 0:02:46.7]} 14... Bg6 {[%clk 0:02:06]} 15. a4 {[%clk
0:02:41.4]} 15... Ng4 {[%clk 0:01:58.2]} 16. a5 {[%clk 0:02:31.7]} 16... a6
{[%clk 0:01:50.3]} 17. Rad1 {[%clk 0:02:09.3]} 17... Qg5 {[%clk 0:01:34]} 18.
Qa4 {[%clk 0:01:55.1]} 18... Qh5 {[%clk 0:01:26.8]} 19. h3 {[%clk 0:01:55.1]}
19... Nxe5 {[%clk 0:01:23.5]} 20. Nxe5 {[%clk 0:01:51.9]} 20... Qxe2 {[%clk
0:01:22.4]} 21. Qb4 {[%clk 0:01:38.7]} 21... f4 {[%clk 0:01:00.7]} 22. Rde1
{[%clk 0:01:18.7]} 22... Qb5 {[%clk 0:00:50.6]} 23. Qxb5 {[%clk 0:01:10.4]}
23... axb5 {[%clk 0:00:51.5]} 24. Nxg6 {[%clk 0:01:10.8]} 24... hxg6 {[%clk
0:00:50.6]} 25. Bxe4 {[%clk 0:01:11.5]} 25... dxe4 {[%clk 0:00:51]} 26. Rxe4
{[%clk 0:01:12.3]} 26... fxg3 {[%clk 0:00:49.5]} 27. fxg3 {[%clk 0:01:13.2]}
27... Rxf1+ {[%clk 0:00:48.7]} 28. Kxf1 {[%clk 0:01:14.1]} 28... Kf7 {[%clk
0:00:44.5]} 29. b4 {[%clk 0:01:14.3]} 29... Rh8 {[%clk 0:00:38.1]} 30. h4 {[%clk
0:01:14.4]} 30... Rh5 {[%clk 0:00:37.7]} 31. Kg2 {[%clk 0:01:10.7]} 31... Kf6
{[%clk 0:00:35.5]} 32. Re1 {[%clk 0:00:56.4]} 32... e5 {[%clk 0:00:27.3]} 33. g4
{[%clk 0:00:49]} 33... Rxh4 {[%clk 0:00:25.6]} 34. Kg3 {[%clk 0:00:49.6]} 34...
Rh8 {[%clk 0:00:22.6]} 35. Rxe5 {[%clk 0:00:50.2]} 35... Rh1 {[%clk 0:00:21.7]}
36. g5+ {[%clk 0:00:50.6]} 36... Kf7 {[%clk 0:00:21.2]} 37. d5 {[%clk
0:00:51.3]} 37... cxd5 {[%clk 0:00:15.7]} 38. Rxd5 {[%clk 0:00:52.2]} 38... Ke6
{[%clk 0:00:14.6]} 39. Rxb5 {[%clk 0:00:52]} 39... Rc1 {[%clk 0:00:13.7]} 40.
Rxb7 {[%clk 0:00:50.6]} 40... Rxc3+ {[%clk 0:00:13.8]} 41. Kf4 {[%clk
0:00:51.2]} 41... Rc4+ {[%clk 0:00:14]} 42. Ke3 {[%clk 0:00:51.9]} 42... Kf5
{[%clk 0:00:14.1]} 43. a6 {[%clk 0:00:51.8]} 43... Rc3+ {[%clk 0:00:13.4]} 44.
Kd4 {[%clk 0:00:52.3]} 44... Ra3 {[%clk 0:00:13.5]} 45. a7 {[%clk 0:00:52.6]}
45... Kxg5 {[%clk 0:00:13.7]} 46. Rb5+ {[%clk 0:00:52.8]} 1-0

[Event "Late-Titled-Tuesday-Blitz-March-19-2024"]
[Site "Chess.com"]
[Date "2024.03.19"]
[Round "1"]
[White "czasnaszachy"]
[Black "Jagerrmeisterr"]
[Result "0-1"]
[WhiteElo "2433"]
[BlackElo "2756"]
[TimeControl "180+1"]
[EndTime "14:06:47 PDT"]
[Termination "Jagerrmeisterr won on time"]

1. e4 {[%clk 0:02:58.3]} 1... c6 {[%clk 0:03:00.1]} 2. d4 {[%clk 0:02:57.7]}
2... d5 {[%clk 0:03:00.4]} 3. e5 {[%clk 0:02:58.3]} 3... c5 {[%clk 0:02:56.9]}
4. Nf3 {[%clk 0:02:52.6]} 4... Nc6 {[%clk 0:02:56]} 5. dxc5 {[%clk 0:02:32.2]}
5... Bg4 {[%clk 0:02:55.5]} 6. c3 {[%clk 0:02:16]} 6... a6 {[%clk 0:02:26.7]} 7.
Be3 {[%clk 0:01:34.3]} 7... Bxf3 {[%clk 0:02:19.8]} 8. Qxf3 {[%clk 0:01:33]}
8... Nxe5 {[%clk 0:02:19.5]} 9. Qg3 {[%clk 0:01:31.6]} 9... Nc6 {[%clk 0:02:18]}
10. Nd2 {[%clk 0:01:30.5]} 10... Nf6 {[%clk 0:02:12.5]} 11. Bd3 {[%clk
0:01:23.6]} 11... e5 {[%clk 0:01:53.8]} 12. O-O {[%clk 0:01:20.6]} 12... Qd7
{[%clk 0:01:26.2]} 13. b4 {[%clk 0:00:30.9]} 13... e4 {[%clk 0:01:16.3]} 14. Be2
{[%clk 0:00:30.7]} 14... h5 {[%clk 0:01:13.5]} 15. h3 {[%clk 0:00:29]} 15... h4
{[%clk 0:01:13.1]} 16. Qh2 {[%clk 0:00:29.3]} 16... Be7 {[%clk 0:01:09.8]} 17.
Nb3 {[%clk 0:00:27.9]} 17... Kf8 {[%clk 0:00:54.1]} 18. a4 {[%clk 0:00:27]}
18... Nd8 {[%clk 0:00:51.3]} 19. b5 {[%clk 0:00:25.1]} 19... Ne6 {[%clk
0:00:51.5]} 20. bxa6 {[%clk 0:00:19.9]} 20... bxa6 {[%clk 0:00:51.2]} 21. Rfd1
{[%clk 0:00:12.5]} 21... Qc8 {[%clk 0:00:51.3]} 22. c4 {[%clk 0:00:10.8]} 22...
Nxc5 {[%clk 0:00:45.3]} 23. Nxc5 {[%clk 0:00:10.1]} 23... Bxc5 {[%clk
0:00:45.7]} 24. cxd5 {[%clk 0:00:09]} 24... Bxe3 {[%clk 0:00:43.7]} 25. fxe3
{[%clk 0:00:09.9]} 25... Qc5 {[%clk 0:00:41.4]} 26. Rd4 {[%clk 0:00:03.7]} 26...
Qc3 {[%clk 0:00:32.8]} 27. Rad1 {[%clk 0:00:01.4]} 27... Qxe3+ {[%clk
0:00:32.6]} 28. Kf1 {[%clk 0:00:01.8]} 28... Nh5 {[%clk 0:00:31.1]} 29. d6
{[%clk 0:00:01.9]} 29... Ng3+ {[%clk 0:00:31]} 30. Qxg3 {[%clk 0:00:02.4]} 30...
hxg3 {[%clk 0:00:31.4]} 0-1

[Event "Late-Titled-Tuesday-Blitz-March-19-2024"]
[Site "Chess.com"]
[Date "2024.03.19"]
[Round "1"]
[White "HaryKane"]
[Black "FredddieCroderg"]
[Result "0-1"]
[WhiteElo "2594"]
[BlackElo "2266"]
[TimeControl "180+1"]
[EndTime "14:06:48 PDT"]
[Termination "FredddieCroderg won by resignation"]

1. d4 {[%clk 0:02:59.6]} 1... d5 {[%clk 0:02:57.6]} 2. e3 {[%clk 0:02:58.4]}
2... Nf6 {[%clk 0:02:55.8]} 3. f4 {[%clk 0:02:51]} 3... e6 {[%clk 0:02:54.4]} 4.
Nf3 {[%clk 0:02:50.1]} 4... Bd6 {[%clk 0:02:54.2]} 5. Bd3 {[%clk 0:02:48.9]}
5... O-O {[%clk 0:02:53.7]} 6. O-O {[%clk 0:02:47.2]} 6... c5 {[%clk 0:02:53.7]}
7. c3 {[%clk 0:02:47]} 7... Nc6 {[%clk 0:02:53.3]} 8. Ne5 {[%clk 0:02:45.3]}
8... Ne7 {[%clk 0:02:49.5]} 9. Nd2 {[%clk 0:02:43.5]} 9... b6 {[%clk 0:02:47.4]}
10. Rf3 {[%clk 0:02:40.7]} 10... Bb7 {[%clk 0:02:46]} 11. Rh3 {[%clk 0:02:36.9]}
11... Ne4 {[%clk 0:02:45.6]} 12. Qh5 {[%clk 0:02:33]} 12... h6 {[%clk
0:02:43.8]} 13. Bxe4 {[%clk 0:02:31.2]} 13... dxe4 {[%clk 0:02:42.9]} 14. g4
{[%clk 0:02:26.1]} 14... f6 {[%clk 0:02:34.9]} 15. Ng6 {[%clk 0:02:22.1]} 15...
Nxg6 {[%clk 0:02:33.5]} 16. Qxg6 {[%clk 0:02:23]} 16... Qe8 {[%clk 0:02:33.1]}
17. Qxe8 {[%clk 0:02:13.5]} 17... Raxe8 {[%clk 0:02:30.7]} 18. b3 {[%clk
0:02:12.1]} 18... cxd4 {[%clk 0:02:28.9]} 19. cxd4 {[%clk 0:02:00.7]} 19... e5
{[%clk 0:02:28.9]} 20. Nc4 {[%clk 0:01:43.3]} 20... Bb8 {[%clk 0:02:21.5]} 21.
Ba3 {[%clk 0:01:33.3]} 21... Rf7 {[%clk 0:02:19.3]} 22. dxe5 {[%clk 0:01:27.2]}
22... fxe5 {[%clk 0:02:18.7]} 23. f5 {[%clk 0:01:26.9]} 23... Bd5 {[%clk
0:02:11.7]} 24. Nd6 {[%clk 0:01:08.7]} 24... Bxd6 {[%clk 0:02:10.6]} 25. Bxd6
{[%clk 0:01:09.6]} 25... Rd7 {[%clk 0:02:09.3]} 26. Bb4 {[%clk 0:01:06.8]} 26...
Bc6 {[%clk 0:02:07.3]} 27. Rg3 {[%clk 0:01:01.7]} 27... a5 {[%clk 0:02:02.1]}
28. Bc3 {[%clk 0:00:57.7]} 28... Rd3 {[%clk 0:02:00.9]} 29. Rc1 {[%clk
0:00:58.1]} 29... a4 {[%clk 0:01:53.8]} 30. h4 {[%clk 0:00:56]} 30... axb3
{[%clk 0:01:53]} 31. axb3 {[%clk 0:00:56.9]} 31... Bd5 {[%clk 0:01:52.7]} 32. b4
{[%clk 0:00:57.2]} 32... Rc8 {[%clk 0:01:50.2]} 33. g5 {[%clk 0:00:42]} 33...
hxg5 {[%clk 0:01:49.3]} 34. Rxg5 {[%clk 0:00:39.3]} 34... Kf7 {[%clk 0:01:44.8]}
35. Rxg7+ {[%clk 0:00:38.8]} 35... Kf8 {[%clk 0:01:28.1]} 36. Rd7 {[%clk
0:00:34.6]} 36... Ke8 {[%clk 0:01:24.3]} 37. Rd6 {[%clk 0:00:19.8]} 37... Ke7
{[%clk 0:01:19.4]} 38. Rxb6 {[%clk 0:00:12.6]} 38... Rcxc3 {[%clk 0:01:18.7]}
39. Rxc3 {[%clk 0:00:13.1]} 39... Rxc3 {[%clk 0:01:18.6]} 40. Kf2 {[%clk
0:00:13.3]} 40... Rc2+ {[%clk 0:01:18.2]} 41. Kg3 {[%clk 0:00:13.5]} 41... Re2
{[%clk 0:01:17.7]} 42. h5 {[%clk 0:00:13.2]} 42... Rxe3+ {[%clk 0:01:17.6]} 43.
Kh4 {[%clk 0:00:13.4]} 43... Rf3 {[%clk 0:01:14.2]} 44. Kg5 {[%clk 0:00:13.2]}
44... e3 {[%clk 0:01:09.9]} 45. f6+ {[%clk 0:00:13.2]} 45... Kf7 {[%clk
0:01:05]} 46. Ra6 {[%clk 0:00:10.2]} 46... e2 {[%clk 0:01:03.4]} 47. Ra7+ {[%clk
0:00:10.2]} 47... Ke6 {[%clk 0:01:03.4]} 48. Ra1 {[%clk 0:00:09.9]} 48... Rf1
{[%clk 0:01:02.1]} 49. Ra6+ {[%clk 0:00:09.4]} 49... Kd7 {[%clk 0:01:01.3]} 0-1